Department family,Entity,Date,Expense Type,Expense area,Supplier,Transation number,Amount,Narrative
Department for Culture Media and Sport,Department for Culture Media and Sport,02/10/2017,Capital Grant Private Sector,GIA Architecture+Heritage,Chatham Historic Dockyard Trust,50003459,"20,000.00",CHD - October 2017 Grant Payment
Department for Culture Media and Sport,Department for Culture Media and Sport,02/10/2017,Capital Grant Private Sector,GIA Architecture+Heritage,Chatham Historic Dockyard Trust,50003459,"150,000.00",CHD - October 2017 Grant Payment
Department for Culture Media and Sport,Department for Culture Media and Sport,02/10/2017,Current Grants Private Sector,GIA Architecture+Heritage,Greenwich Foundation for the RN College,50003474,"80,666.00",ORNC OCT 2017 GRANT
Department for Culture Media and Sport,Department for Culture Media and Sport,02/10/2017,Grant-in-Aid (DCMS NDPBs),GIA Arts bodies,Arts Council of England,50003483,"43,700,661.00",ACE GiA October 2017
Department for Culture Media and Sport,Department for Culture Media and Sport,02/10/2017,Grant-in-Aid (DCMS NDPBs),GIA British Film Institute,British Film Institute,50003484,"2,117,844.00",BFI GiA October 2017
Department for Culture Media and Sport,Department for Culture Media and Sport,02/10/2017,Grant-in-Aid (DCMS NDPBs),GIA Libraries bodies,British Library,50003485,"6,841,972.00",BL GiA October 2017
Department for Culture Media and Sport,Department for Culture Media and Sport,02/10/2017,Grant-in-Aid (DCMS NDPBs),GIA Museums & Galleries,British Museum,50003486,"4,705,000.00",BM GiA October 2017
Department for Culture Media and Sport,Department for Culture Media and Sport,02/10/2017,Grant-in-Aid (DCMS NDPBs),GIA Tourism bodies,VisitBritain,50003487,"4,500,000.00",VB GiA October 2017
Department for Culture Media and Sport,Department for Culture Media and Sport,02/10/2017,Grant-in-Aid (DCMS NDPBs),GIA Architecture+Heritage,Churches Conservation Trust,50003488,"199,663.00",CCT GiA October 2017
Department for Culture Media and Sport,Department for Culture Media and Sport,04/10/2017,Grant-in-Aid (DCMS NDPBs),GIA Architecture+Heritage,Historic England (GIA),50003489,"6,978,000.00",HE GiA October 2017
Department for Culture Media and Sport,Department for Culture Media and Sport,02/10/2017,Grant-in-Aid (DCMS NDPBs),GIA Museums & Galleries,Geffrye Museum,50003490,"124,666.00",GM GiA October 2017
Department for Culture Media and Sport,Department for Culture Media and Sport,02/10/2017,Grant-in-Aid (DCMS NDPBs),GIA Museums & Galleries,Horniman Museum,50003491,"214,311.00",HM GiA October 2017
Department for Culture Media and Sport,Department for Culture Media and Sport,02/10/2017,Grant-in-Aid (DCMS NDPBs),GIA Museums & Galleries,Imperial War Museum,50003493,"3,546,545.00",IWM GiA October 2017
Department for Culture Media and Sport,Department for Culture Media and Sport,04/10/2017,Grant-in-Aid (DCMS NDPBs),GIA Museums & Galleries,National Gallery,50003494,"2,943,409.00",NG GiA October 2017
Department for Culture Media and Sport,Department for Culture Media and Sport,04/10/2017,Grant-in-Aid (DCMS NDPBs),GIA Museums & Galleries,National Maritime Museum,50003495,"1,293,333.00",RMG GiA October 2017
Department for Culture Media and Sport,Department for Culture Media and Sport,02/10/2017,Grant-in-Aid (DCMS NDPBs),GIA Museums & Galleries,National Museums & Galleries Merseyside,50003496,"1,713,229.00",NML GiA October 2017
Department for Culture Media and Sport,Department for Culture Media and Sport,02/10/2017,Grant-in-Aid (DCMS NDPBs),GIA Museums & Galleries,National Portrait Gallery,50003497,"552,750.00",NPG GiA October 2017
Department for Culture Media and Sport,Department for Culture Media and Sport,02/10/2017,Grant-in-Aid (DCMS NDPBs),GIA Museums & Galleries,Natural History Museum,50003498,"3,484,583.00",NHM GiA October 2017
Department for Culture Media and Sport,Department for Culture Media and Sport,02/10/2017,Grant-in-Aid (DCMS NDPBs),OFCOM,OFCOM,50003499,"649,535.00",OfOrp GiA October 2017
Department for Culture Media and Sport,Department for Culture Media and Sport,02/10/2017,Grant-in-Aid (DCMS NDPBs),OFCOM,OFCOM,50003500,"3,894,148.00",OfSpMa GiA October 2017
Department for Culture Media and Sport,Department for Culture Media and Sport,02/10/2017,Grant-in-Aid (DCMS NDPBs),OFCOM,OFCOM,50003501,"11,172,266.00",OfUHF GiA October 2017
Department for Culture Media and Sport,Department for Culture Media and Sport,02/10/2017,Grant-in-Aid (DCMS NDPBs),GIA Museums & Galleries,The Royal Armouries,50003502,"472,683.00",RA GiA October 2017
Department for Culture Media and Sport,Department for Culture Media and Sport,02/10/2017,Grant-in-Aid (DCMS NDPBs),GIA S4C Welsh Fourth Channel,S4C-Sianel Pedwar Cymru-all inv inc. GIA,50003503,"554,000.00",S4C GiA October 2017
Department for Culture Media and Sport,Department for Culture Media and Sport,02/10/2017,Grant-in-Aid (DCMS NDPBs),GIA Museums & Galleries,Science Museum Group (ex-NMSI),50003504,"3,312,000.00",SMG GiA October 2017
Department for Culture Media and Sport,Department for Culture Media and Sport,02/10/2017,Grant-in-Aid (DCMS NDPBs),GIA Sports bodies,Sport Ground Safety Authority,50003505,"130,000.00",SGSA GiA October 2017
Department for Culture Media and Sport,Department for Culture Media and Sport,02/10/2017,Grant-in-Aid (DCMS NDPBs),GIA Museums & Galleries,Sir John Soane's Museum,50003506,"82,000.00",SJSM GiA October 2017
Department for Culture Media and Sport,Department for Culture Media and Sport,03/10/2017,Grant-in-Aid (DCMS NDPBs),GIA Sports bodies,Sport England,50003507,"6,000,000.00",SE GiA October 2017
Department for Culture Media and Sport,Department for Culture Media and Sport,04/10/2017,Grant-in-Aid (DCMS NDPBs),GIA Museums & Galleries,Tate Gallery,50003508,"3,172,167.00",TATE GiA October 2017
Department for Culture Media and Sport,Department for Culture Media and Sport,04/10/2017,Grant-in-Aid (DCMS NDPBs),GIA Sports bodies,United Kingdom Sports Council,50003509,"19,271,297.00",UKS GiA October 2017
Department for Culture Media and Sport,Department for Culture Media and Sport,02/10/2017,Grant-in-Aid (DCMS NDPBs),GIA Sports bodies,United Kingdom Anti Doping Ltd,50003510,"450,000.00",UKAD GiA October 2017
Department for Culture Media and Sport,Department for Culture Media and Sport,02/10/2017,Grant-in-Aid (DCMS NDPBs),GIA Museums & Galleries,Victoria & Albert Museum,50003511,"3,095,500.00",VA GiA October 2017
Department for Culture Media and Sport,Department for Culture Media and Sport,02/10/2017,Grant-in-Aid (DCMS NDPBs),GIA Museums & Galleries,Wallace Collection,50003512,"85,000.00",TWC GiA October 2017
Department for Culture Media and Sport,Department for Culture Media and Sport,04/10/2017,Grant-in-Aid (DCMS NDPBs),GIA Gambling + Lottery bodies,National Lottery Commission,50003513,"316,921.00",NLC GiA October 2017
Department for Culture Media and Sport,Department for Culture Media and Sport,11/10/2017,Grant to BBC:Home Broadcasting,Home Broadcasting:Grant to BBC,British Broadcasting Corporation,50003514,"250,120,692.00",BBC GiA October 2017 2017
Department for Culture Media and Sport,Department for Culture Media and Sport,02/10/2017,Capital Grants to LAs,Broadband UK Capital+Programme,Wiltshire Council,50003541,"1,439,067.00",RUTWO WILT C2 Q3 16-17
Department for Culture Media and Sport,Department for Culture Media and Sport,04/10/2017,Current Grants Private Sector,LPW and Ecclesiastical,The Archbishops Council,50003542,"49,233.38", Worcester Cathedral Oct 17
Department for Culture Media and Sport,Department for Culture Media and Sport,04/10/2017,Current Grants Private Sector,LPW and Ecclesiastical,The Archbishops Council,50003543,"85,916.74",Winchester Cathedral Oct 17
Department for Culture Media and Sport,Department for Culture Media and Sport,04/10/2017,Current Grants Private Sector,LPW and Ecclesiastical,The Archbishops Council,50003544,"42,618.16", Truro Cathedral Oct 17 rd2 4th
Department for Culture Media and Sport,Department for Culture Media and Sport,04/10/2017,Current Grants Private Sector,LPW and Ecclesiastical,The Archbishops Council,50003545,"35,444.82", St Edmundsbury Cathedral. Oct 17
Department for Culture Media and Sport,Department for Culture Media and Sport,04/10/2017,Current Grants Private Sector,LPW and Ecclesiastical,The Archbishops Council,50003546,"52,161.41", Southwell Cathedral Oct 17 rd 2 1st
Department for Culture Media and Sport,Department for Culture Media and Sport,04/10/2017,Current Grants Private Sector,LPW and Ecclesiastical,The Archbishops Council,50003548,"50,671.11", Sheffield Cathedral. Oct 17 rd1 2nd
Department for Culture Media and Sport,Department for Culture Media and Sport,04/10/2017,Current Grants Private Sector,LPW and Ecclesiastical,The Archbishops Council,50003549,"40,173.12",CCB99/180 Plymouth Cathedral. oct 17 rd2 1st
Department for Culture Media and Sport,Department for Culture Media and Sport,04/10/2017,Current Grants Private Sector,LPW and Ecclesiastical,The Archbishops Council,50003551,"215,630.17",CCB22/001 Liverpool Cathedral. Oct 17 Rd1 3
Department for Culture Media and Sport,Department for Culture Media and Sport,04/10/2017,Current Grants Private Sector,LPW and Ecclesiastical,The Archbishops Council,50003552,"95,804.39",CCB20/001 Lichfield Cathedral. Oct 17 Rd1 2nd
Department for Culture Media and Sport,Department for Culture Media and Sport,04/10/2017,Current Grants Private Sector,LPW and Ecclesiastical,The Archbishops Council,50003553,"85,792.00",CCB14/001 Ely Cathedral. Oct 17 Rd 2 5th
Department for Culture Media and Sport,Department for Culture Media and Sport,04/10/2017,Current Grants Private Sector,LPW and Ecclesiastical,The Archbishops Council,50003554,"99,203.97",CCB11/001 Coventry Cathedral. oct 17 Rd1 9th
Department for Culture Media and Sport,Department for Culture Media and Sport,04/10/2017,Current Grants Private Sector,LPW and Ecclesiastical,The Archbishops Council,50003555,"60,980.92",CCB03/001 Blackburn Cathedral. Oct 17 Rd2 5th
Department for Culture Media and Sport,Department for Culture Media and Sport,06/10/2017,Current Grants Private Sector,LPW and Ecclesiastical,Topmark Claims Management Ltd,50003556,"690,906.76",Listed Places of Worship 
Department for Culture Media and Sport,Department for Culture Media and Sport,12/10/2017,Current Grants Private Sector,Youth Policy & NCS,BRITISH YOUTH COUNCIL,50003557,"56,941.75",A1450 British Youth Council Q3 1718
Department for Culture Media and Sport,Department for Culture Media and Sport,11/10/2017,Capital Grants to LAs,Broadband UK Capital+Programme,Wiltshire Council,50003560,"785,214.00", Wiltshire Council C3 Q4 16-17
Department for Culture Media and Sport,Department for Culture Media and Sport,13/10/2017,Current Grants Private Sector,Other Heritage Programme Costs,Topmark Claims Management Ltd,50003564,"134,360.60",Memorial Grants Scheme 2017/003
Department for Culture Media and Sport,Department for Culture Media and Sport,13/10/2017,Management of Grant Programmes,LPW and Ecclesiastical,Topmark Claims Mgt (Fees A/C),50003566,"52,675.00",Listed Places of Worship Admin fees August 2017
Department for Culture Media and Sport,Department for Culture Media and Sport,13/10/2017,Management of Grant Programmes,LPW and Ecclesiastical,Topmark Claims Mgt (Fees A/C),50003566,264.8,Listed Places of Worship August 2017
Department for Culture Media and Sport,Department for Culture Media and Sport,13/10/2017,VAT-Recoverable Contracted-Out,Misc Balance Sheet,Topmark Claims Mgt (Fees A/C),50003566,"10,535.00",Listed Places of Worship August 2017
Department for Culture Media and Sport,Department for Culture Media and Sport,17/10/2017,Current Grants to LAs,Governm Inclusive Economy Unit,Manchester City Council,50003567,"82,255.00", Manchester City Council SOF Q1 171
Department for Culture Media and Sport,Department for Culture Media and Sport,16/10/2017,Current Grants Private Sector,LPW and Ecclesiastical,Topmark Claims Management Ltd,50003568,"443,902.59",Funding for Listed Places of Worship
Department for Culture Media and Sport,Department for Culture Media and Sport,17/10/2017,Current Grants Private Sector,Broadband UK Capital+Programme,Digital Mobile Spectrum Limited,50003569,"47,566.00",Digital Mobile Spectrum Limited
Department for Culture Media and Sport,Department for Culture Media and Sport,24/10/2017,Current Grants Private Sector,Youth Policy & NCS,Big Lottery Fund- Youth Investment Fund,50003571,"142,239.00",Big Lottery Fund Youth Investment
Department for Culture Media and Sport,Department for Culture Media and Sport,24/10/2017,Current Grants Private Sector,Youth Policy & NCS,Big Lottery Fund- Youth Investment Fund,50003572,"41,007.00",Big Lottery Fund Youth Investment
Department for Culture Media and Sport,Department for Culture Media and Sport,23/10/2017,Current Grants Private Sector,LPW and Ecclesiastical,Topmark Claims Management Ltd,50003573,"453,040.98",Funding for Listed Places of Worship
Department for Culture Media and Sport,Department for Culture Media and Sport,24/10/2017,Current Grants Private Sector,Youth Policy & NCS,Big Lottery Fund- Youth Investment Fund,50003574,"2,747,523.00",A1616 Big Lottery Fund Youth Investment
Department for Culture Media and Sport,Department for Culture Media and Sport,30/10/2017,Current Grants Private Sector,PASO,STOCKPORT WOMENS CENTRE,50003613,"36,319.15",A1594  Tampon Tax Q3 1718
Department for Culture Media and Sport,Department for Culture Media and Sport,25/10/2017,Current Grants Private Sector,Youth Policy & NCS,National Citizen Service,50003615,"21,653,878.00",A1557 NCS Programme Q3 17/18
Department for Culture Media and Sport,Department for Culture Media and Sport,27/10/2017,Capital Grant Private Sector,Grant support to NFTS,National Film & Television School,50003617,"186,000.00",A1740 National Film&TV School OCT 17/18
Department for Culture Media and Sport,Department for Culture Media and Sport,27/10/2017,Capital Grant Private Sector,Grant support to NFTS,National Film & Television School,50003617,"19,421.00",A1740 National Film&TV School OCT 17/18
Department for Culture Media and Sport,Department for Culture Media and Sport,31/10/2017,Current Grants Private Sector,Social Action,Community Organisers Ltd,50003619,"87,500.00",A1625 Community Organisers Q3 17/18
Department for Culture Media and Sport,Department for Culture Media and Sport,26/10/2017,Current Grants Private Sector,DD2 Program,TECH CITY (UK) LTD,50003623,"159,466.00",
Department for Culture Media and Sport,Department for Culture Media and Sport,26/10/2017,Capital Grants to LAs,Broadband UK Capital+Programme,NYnet Ltd,50003624,"178,013.00",
Department for Culture Media and Sport,Department for Culture Media and Sport,27/10/2017,Current Grants Private Sector,PASO,Faith Regen Foundation,50003625,"47,123.00",A1660 Faith Regan Tampon Tax Q2/3 17/18
Department for Culture Media and Sport,Department for Culture Media and Sport,27/10/2017,Current Grants Private Sector,PASO,Heart of England,50003628,"55,000.00",A1663 Heart Of England Tampon Tax 17/18
Department for Culture Media and Sport,Department for Culture Media and Sport,27/10/2017,Current Grants Private Sector,PASO,The Ambulance Services Charity,50003629,"58,138.00",A1705 Ambulance Charity Q3 17/18
Department for Culture Media and Sport,Department for Culture Media and Sport,27/10/2017,Current Grants Private Sector,DD2 Program,TECH CITY (UK) LTD,50003632,"230,500.00",September Grant Claim for TCUK
Department for Culture Media and Sport,Department for Culture Media and Sport,27/10/2017,Current Grants Private Sector,Broadband UK Capital+Programme,Digital Mobile Spectrum Limited,50003633,"53,712.00",
Department for Culture Media and Sport,Department for Culture Media and Sport,30/10/2017,Current Grants Private Sector,Governm Inclusive Economy Unit,Big Lottery Fund - Life Chances Fund,50003636,"281,196.00",A1622 BigLottery LifeChances Grant Q3
Department for Culture Media and Sport,Department for Culture Media and Sport,30/10/2017,Current Grants Private Sector,Governm Inclusive Economy Unit,Big Lottery Fund - Life Chances Fund,50003636,"500,000.00",A1622 BigLottery LifeChances Grant Q3
Department for Culture Media and Sport,Department for Culture Media and Sport,30/10/2017,Current Grants Private Sector,Governm Inclusive Economy Unit,Big Lottery Fund - Life Chances Fund,50003636,"786,238.00",A1622 BigLottery LifeChances Grant Q3
Department for Culture Media and Sport,Department for Culture Media and Sport,27/10/2017,Current Grants Private Sector,LPW and Ecclesiastical,Topmark Claims Management Ltd,50003638,"614,247.91",Funding for LPW 181017_251017
Department for Culture Media and Sport,Department for Culture Media and Sport,30/10/2017,Capital Grants to LAs,Broadband UK Capital+Programme,Derbyshire County Council,50003639,"76,194.00",RUTWO DRBY C5 Q1 17-18
Department for Culture Media and Sport,Department for Culture Media and Sport,30/10/2017,Capital Grants to LAs,Broadband UK Capital+Programme,Herefordshire Council,50003641,"754,380.00",RUTWO HERE C1 Q2 17-18
Department for Culture Media and Sport,Department for Culture Media and Sport,30/10/2017,Capital Grants to LAs,Broadband UK Capital+Programme,Telford & Wrekin Council,50003642,"423,214.00",RUTWO TELF C4 Q1 17-18
Department for Culture Media and Sport,Department for Culture Media and Sport,30/10/2017,Capital Grants to LAs,Broadband UK Capital+Programme,West Yorkshire Combined Authority,50003643,"482,470.00",RUTWO WYRK C7 Q1 17-18
Department for Culture Media and Sport,Department for Culture Media and Sport,30/10/2017,Capital Grants to LAs,Broadband UK Capital+Programme,Sandwell MBC,50003644,"89,972.00",RUTWO BLAC INFILL CR7
Department for Culture Media and Sport,Department for Culture Media and Sport,30/10/2017,Capital Grants to LAs,Broadband UK Capital+Programme,Central Bedfordshire Council,50003645,"510,784.00",RUTWO BEDS C2 Q1 17-18
Department for Culture Media and Sport,Department for Culture Media and Sport,30/10/2017,Capital Grants to LAs,Broadband UK Capital+Programme,East Cheshire BC Council Fund Account,50003646,"78,329.00",RUTWOCHESC6Q117-18
Department for Culture Media and Sport,Department for Culture Media and Sport,30/10/2017,Capital Grants to LAs,Broadband UK Capital+Programme,Staffordshire County Council,50003647,"230,308.00",RUTWO STAFF C4 Q1 17-18
Department for Culture Media and Sport,Department for Culture Media and Sport,30/10/2017,Capital Grants to LAs,Broadband UK Capital+Programme,Shropshire Council,50003648,"716,762.00",RUTWO SHRP C3 Q1 17-18
Department for Culture Media and Sport,Department for Culture Media and Sport,30/10/2017,Capital Grants to LAs,Broadband UK Capital+Programme,Worcestershire County Council (Rural),50003649,"631,970.00",RUTWO WORC C4 Q4 16-17
Department for Culture Media and Sport,Department for Culture Media and Sport,31/10/2017,Capital Grants to LAs,Broadband UK Capital+Programme,Kent County Council,50003651,"302,575.00",RUTWO KENT C7 Q1 17-18
1,,,,,,,,
